[Event "USA Junior-ch 2022"]
[Site "Saint Louis"]
[Date "2022.07.07"]
[Round "1.1"]
[White "Hong, Andrew"]
[Black "Brodsky, David"]
[Result "1-0"]
[ECO "B99"]
[WhiteElo "2504"]
[BlackElo "2496"]
[Annotator "TA"]
[PlyCount "67"]
[EventDate "2022.07.07"]
[EventType "tourn"]
[EventCountry "USA"]
[SourceTitle "playchess.com"]
[Source "ChessBase"]
[SourceQuality "1"]
[TimeControl "40/5400+30:1800+30"]

{[%evp 22,67,35,51,37,41,44,34,47,16,14,14,19,20,518,539,539,522,523,540,532,533,483,520,485,520,609,616,598,596,589,575,758,722,749,696,722,714,714,714,656,659,29967,29966,29968,29967,5257,1457]} 1. e4 {[%emt 0:00:03]} c5 {[%emt 0:00:03]} 2. Nf3 {[%emt 0:00:15]} d6 {[%emt 0:00:03]} 3. d4 {[%emt 0:00:07]} cxd4 {[%emt 0:00:04]} 4. Nxd4 {[%emt 0:00:05]} Nf6 {[%emt 0:00:03]} 5. Nc3 {[%emt 0:00:06]} a6 {[%emt 0:00:02]} 6. Bg5 {[%emt 0:00:28]} e6 {[%emt 0:00:07]} 7. f4 {[%emt 0:00:07]} Be7 {[%emt 0:00:10]} 8. Qf3 {[%emt 0:00:16]} Qc7 {[%emt 0:00:09]} 9. O-O-O {[%emt 0:00:08]} Nbd7 {[%emt 0:00:02]} 10. g4 {[%emt 0:00:33][%cal Bg2g4,Bg4g5][%mdl 32]} h6 {[%emt 0:00:04]} 11. Bxf6 {[%emt 0:00:47]} Bxf6 {[%emt 0:00:04]} 12. h4 {[%emt 0:00:19]} Nb6 {[%emt 0:00:07] now scores much better than the old 12...Qb6. B99: Sicilian Najdorf: 6 Bg5 e6 7 f4 Be7 8 Qf3 Qc7 9 0-0-0 Nbd7.} 13. g5 {[%emt 0:00:31]} Bxd4 {[%emt 0:00:06]} 14. Rxd4 {[%emt 0:00:06]} Qc5 {[%emt 0:00:05] [#] White is slightly better.} 15. Qf2 $1 $146 {[%emt 0:00:49][%cal Oe4e5][%mdl 8] e5! is the strong threat. A relevant novelty.} ({Predecessor:} 15. Rd2 Bd7 16. Be2 Rc8 17. gxh6 Rxh6 18. h5 Na4 19. Nxa4 Bxa4 20. c3 Bc6 21. Rhd1 {1-0 (39) Brkic,A (2621)-Van Foreest,J (2691) Riga 2021}) 15... hxg5 $1 {[%emt 0:15:44]} 16. e5 {[%emt 0:01:10] Strongly threatening Ne4.} gxf4 {[%emt 0:00:44]} 17. Bd3 {[%emt 0:00:29][%cal Bf1d3,Bd3g6,Bg6e4][%mdl 32] Threatens to win with Ne4.} f5 {[%emt 0:33:45][%mdl 8192] Against Ne4. Black cannot hold the game after this.} (17... d5 $1 $11 {and Black is okay.}) 18. exf6 $1 $18 {[%emt 0:00:33]} e5 {[%emt 0:03:27]} 19. fxg7 {[%emt 0:00:11]} Rg8 {[%emt 0:00:14]} 20. Bg6+ {[%emt 0:00:28]} Ke7 {[%emt 0:02:22] [#]} 21. h5 $1 {[%emt 0:00:43]} Qxd4 {[%emt 0:15:28]} 22. Qh4+ {[%emt 0:00:19]} Kd7 {[%emt 0:08:44]} 23. h6 {[%emt 0:01:14]} Kc6 {[%emt 0:01:39]} 24. Be4+ {[%emt 0:34:21]} Kc7 {[%emt 0:03:17]} 25. Qf6 {[%emt 0:16:58]} ({Not} 25. h7 $2 Rxg7 26. Qd8+ (26. h8=Q $2 Rg1+ 27. Rxg1 Qe3+ 28. Kd1 Qxg1+ 29. Kd2 Nc4+ 30. Ke2 Bg4+ 31. Qxg4 Qxg4+ $19) 26... Kb8 $19) 25... Bd7 {[%emt 0:05:00]} 26. Rd1 {[%emt 0:07:41]} Qe3+ {[%emt 0:01:00]} 27. Kb1 {[%emt 0:00:40]} Kb8 {[%emt 0:05:58]} 28. h7 {[%emt 0:02:15]} Ka7 {[%emt 0:00:04]} 29. hxg8=Q {[%emt 0:02:46][%mdl 64] Promotion} Rxg8 {[%emt 0:00:09]} 30. Qf7 {[%emt 0:00:10]} Rc8 {[%emt 0:02:40]} 31. g8=Q {[%emt 0:01:49]} Rxc3 {[%emt 0:01:25]} 32. bxc3 {[%emt 0:01:39]} Qxe4 {[%emt 0:00:06]} 33. Qff8 {[%emt 0:01:24][%csl Gg8][%cal Rf8b8]} Nc8 {[%emt 0:02:54]} 34. Qg1+ {[%emt 0:00:17] Weighted Error Value: White=0.02 (flawless) /Black=0.33} 1-0

[Event "USA Junior-ch 2022"]
[Site "Saint Louis"]
[Date "2022.07.08"]
[Round "1.2"]
[White "Daggupati, Balaji"]
[Black "Espinosa, Pedro"]
[Result "1-0"]
[ECO "C65"]
[WhiteElo "2488"]
[BlackElo "2130"]
[Annotator "TA"]
[PlyCount "139"]
[EventDate "2022.07.07"]
[EventType "tourn"]
[EventCountry "USA"]
[SourceTitle "playchess.com"]
[Source "ChessBase"]
[SourceQuality "1"]
[TimeControl "40/5400+30:1800+30"]

{[%evp 9,139,8,16,8,8,16,7,0,0,0,0,0,0,0,29,27,26,23,23,22,27,0,0,0,0,0,0,-59,-70,-91,-78,-78,-82,-89,-89,-72,-81,-79,-106,-99,-67,-97,-102,-113,-84,-85,-28,-69,-81,-69,-6,-199,-44,-214,0,0,0,0,0,0,0,0,14,12,31,0,0,0,0,0,0,0,0,0,0,0,0,0,0,0,90,95,83,77,661,571,1160,29965,29963,29966,29965,29967,29973,29967,29966,29967,29964,0,29960,0,29974,29975,29975,29976,29976,607,29976,29978,29978,29979,29979,29980,29980,29979,29979,29980,29981,29980,29980,29981,29981,29982,29983,29984,29989,29990,29996,29997,29997,29998,29998,29999]} 1. e4 {[%emt 0:00:03]} e5 {[%emt 0:00:12]} 2. Nf3 {[%emt 0:00:06]} Nc6 {[%emt 0:00:10]} 3. Bb5 {[%emt 0:00:05]} Nf6 {[%emt 0:00:18]} 4. d3 {[%emt 0:00:06]} Bc5 {[%emt 0:00:29]} 5. c3 {[%emt 0:00:08]} d5 {[%emt 0:04:37]} 6. exd5 {[%emt 0:00:16] C65: Ruy Lopez: Berlin Defence (3...Nf6), unusual lines and 4 0-0 Bc5.} Qxd5 {[%emt 0:01:16][%cal Oc5f2]} 7. Bc4 {[%emt 0:00:09]} Qd6 {[%emt 0:01:51]} 8. b4 {[%emt 0:00:08] The position is equal.} Bb6 {[%emt 0:01:42]} 9. Nbd2 {[%emt 0:00:07] Inhibits e4.} Bf5 {[%emt 0:04:05]} 10. Ng5 {[%emt 0:00:21]} O-O {[%emt 0:05:59]} (10... Bxd3 11. Bxf7+ (11. Nxf7 Qf8 $11) 11... Ke7 12. Nc4 Bxc4 13. Bxc4 (13. Qxd6+ cxd6 14. Bxc4 h6 $17) 13... Qxd1+ 14. Kxd1 $14) 11. Nde4 {[%emt 0:00:04] [#]} Bxe4 $146 {[%emt 0:08:53]} ({Predecessor:} 11... Nxe4 12. dxe4 Qxd1+ 13. Kxd1 Bg4+ 14. Ke1 h6 15. h3 Bd7 16. Nf3 Rfe8 17. a4 a6 {1-0 (75) Saric,I (2665)-Ragger,M (2668) Terme Catez 2021}) 12. Nxe4 {[%emt 0:00:32]} Nxe4 {[%emt 0:01:44]} 13. dxe4 {[%emt 0:00:06]} Qxd1+ {[%emt 0:02:43]} 14. Kxd1 {[%emt 0:00:06]} Bxf2 {[%emt 0:01:06]} 15. g3 {[%emt 0:03:58]} Ne7 {[%emt 0:10:35][%cal Bc6e7,Be7c8,Bc8d6][%mdl 32]} 16. a4 {[%emt 0:39:36]} a5 $1 {[%emt 0:05:21]} 17. Ke2 $1 {[%emt 0:04:34]} Bb6 {[%emt 0:02:20]} 18. Bg5 {[%emt 0:00:53]} (18. bxa5 $11 Rxa5 19. Ba3) 18... Nc8 $15 {[%emt 0:03:52]} 19. b5 {[%emt 0:03:06]} h6 $36 {[%emt 0:03:57][%mdl 2048] Black has strong initiative.} 20. Bc1 {[%emt 0:00:04]} Nd6 {[%emt 0:02:23][%csl LRc4,LRe4]} 21. Bd5 {[%emt 0:00:21]} Bc5 {[%emt 0:01:30]} 22. Rb1 {[%emt 0:02:13]} Rac8 {[%emt 0:02:59]} 23. Be3 {[%emt 0:00:05]} Bxe3 {[%emt 0:02:53]} 24. Kxe3 {[%emt 0:00:05]} g5 {[%emt 0:02:21]} 25. h4 {[%emt 0:06:27]} Kg7 {[%emt 0:01:37]} 26. Rhd1 {[%emt 0:08:59]} Rfd8 {[%emt 0:04:22]} 27. Rd2 {[%emt 0:02:49]} Kf6 {[%emt 0:02:25]} ({Black should play} 27... f5 $17 {White must now prevent ...f4+.} 28. Rh2 c6 29. bxc6 bxc6) 28. Rf1+ {[%emt 0:01:48]} Ke7 $1 {[%emt 0:02:23] Threatens to win with ...c6.} 29. Rdf2 {[%emt 0:00:22][%cal Od5b7]} Rf8 {[%emt 0:01:12]} (29... c6 $1 $15 30. bxc6 bxc6 31. Bxf7 Rf8) 30. Rf6 $2 {[%emt 0:00:45]} (30. c4 $1 $11 c6 31. bxc6 bxc6 32. c5 cxd5 33. cxd6+ Kxd6 34. Rf6+ Ke7 35. exd5) 30... gxh4 $2 {[%emt 0:04:56]} (30... c6 $19 31. bxc6 bxc6) 31. gxh4 $2 {[%emt 0:00:05] [#]} ({White has to play} 31. c4 $1 $15 c6 32. c5 Nxb5 33. Rxf7+ Rxf7 34. Rxf7+ Ke8 35. Be6) 31... Rh8 $2 {[%emt 0:02:17]} ({Black should try} 31... c6 $1 $19 {[%cal Rc6d5]} 32. bxc6 bxc6) 32. c4 $11 {[%emt 0:03:27] aiming for c5.} b6 {[%emt 0:00:42]} 33. R6f3 {[%emt 0:00:22]} Rcf8 {[%emt 0:02:33]} 34. c5 {[%emt 0:01:30]} bxc5 {[%emt 0:00:25]} 35. Rc1 {[%emt 0:00:03] Against c4} f5 {[%emt 0:06:17]} 36. Rxc5 {[%emt 0:00:05]} Kd7 {[%emt 0:01:26]} (36... f4+ 37. Kf2 Kd8 38. Rc6 $16) 37. Rf1 {[%emt 0:03:04]} (37. Ke2 $5 {[%cal Rf3c3]}) 37... fxe4 {[%emt 0:01:31]} 38. Rfc1 {[%emt 0:00:46]} Rf3+ {[%emt 0:01:26]} 39. Ke2 {[%emt 0:00:14] Dancing on a razor blade.} Rc8 {[%emt 0:01:09]} 40. Bc6+ {[%emt 0:07:38][%mdl 64] Discovered Attack} Ke6 {[%emt 0:00:26] Strongly threatening ...Nf5.} 41. Bd5+ {[%emt 0:32:07][%mdl 64] Discovered Attack} Kd7 {[%emt 0:30:19]} 42. Bxe4 {[%emt 0:04:05]} Rf2+ {[%emt 0:00:55]} 43. Ke3 {[%emt 0:03:21] Bc6+ is the strong threat.} Nxe4 {[%emt 0:00:00]} 44. Rxe5 {[%emt 0:00:00]} Re8 {[%emt 0:00:00]} 45. Rxe8 $16 {[%emt 0:00:00]} Kxe8 {[%emt 0:00:00]} 46. Rxc7 {[%emt 0:00:00]} Rh2 $2 {[%emt 0:00:00][%mdl 8192]} 47. Kxe4 $18 {[%emt 0:00:00]} Rxh4+ {[%emt 0:00:00][%mdl 4096] Endgame KR-KR} 48. Kd5 {[%emt 0:00:00]} Rxa4 {[%emt 0:00:00]} 49. b6 {[%emt 0:00:00]} Kd8 {[%emt 0:00:00]} 50. Rh7 {[%emt 0:00:00]} Rb4 {[%emt 0:02:17]} 51. Kc6 {[%emt 0:00:00]} Rc4+ {[%emt 0:01:20]} 52. Kb5 {[%emt 0:00:00]} Rb4+ {[%emt 0:00:43]} 53. Kc6 {[%emt 0:00:00]} Rc4+ {[%emt 0:00:24]} 54. Kd5 {[%emt 0:00:00]} Rb4 {[%emt 0:00:25]} 55. b7 {[%emt 0:00:00]} a4 {[%emt 0:02:31]} 56. Kc6 {[%emt 0:00:00]} a3 {[%emt 0:00:33]} 57. Rh8+ {[%emt 0:00:00]} Ke7 {[%emt 0:00:02]} 58. b8=Q {[%emt 0:00:00] White mates.} (58. Ra8 Ke6 59. Rxa3 (59. Re8+ Kf5 $11) 59... Kf6 $18) 58... Rxb8 {[%emt 0:00:06]} 59. Rxb8 {[%emt 0:00:00] KR-KPP} Kf6 {[%emt 0:00:47]} 60. Kd5 {[%emt 0:00:00]} Kf5 {[%emt 0:00:23]} 61. Ra8 {[%emt 0:00:00]} h5 {[%emt 0:00:39]} 62. Rxa3 {[%emt 0:00:00] KR-KP} h4 {[%emt 0:00:34]} 63. Kd4 {[%emt 0:00:00]} Kf4 {[%emt 0:00:36]} 64. Rb3 {[%emt 0:00:00]} Kg4 {[%emt 0:00:21]} 65. Ke3 {[%emt 0:00:00]} Kg3 {[%emt 0:00:24]} 66. Rb8 {[%emt 0:00:00]} h3 {[%emt 0:00:44] [#]} 67. Rg8+ $1 {[%emt 0:00:00]} Kh2 {[%emt 0:00:06]} 68. Kf2 {[%emt 0:00:00]} Kh1 {[%emt 0:00:06]} 69. Ra8 {[%emt 0:00:00]} Kh2 {[%emt 0:00:14]} 70. Rh8 {[%emt 0:00:00] Quite a comeback for White.  Weighted Error Value: White=0.40/Black=0.26 (precise)} 1-0

[Event "USA Junior-ch 2022"]
[Site "Saint Louis"]
[Date "2022.07.08"]
[Round "1.3"]
[White "Wang, Justin"]
[Black "Liang, Awonder"]
[Result "1-0"]
[ECO "E95"]
[WhiteElo "2469"]
[BlackElo "2625"]
[Annotator "TA"]
[PlyCount "101"]
[EventDate "2022.07.07"]
[EventType "tourn"]
[EventCountry "USA"]
[SourceTitle "playchess.com"]
[Source "ChessBase"]
[SourceQuality "1"]
[TimeControl "40/5400+30:1800+30"]

{[%evp 16,101,37,31,36,33,56,19,41,5,32,29,50,43,66,78,74,52,43,35,37,30,32,7,51,42,61,9,14,16,16,6,18,0,0,0,0,0,0,-8,-10,-11,-15,-20,0,0,0,0,0,0,0,0,108,87,177,0,97,0,102,112,277,264,370,386,354,345,355,341,450,458,459,439,449,454,471,479,543,527,510,506,720,706,808,794,800,784,736,686]} 1. d4 {[%emt 0:00:21]} Nf6 {[%emt 0:00:01]} 2. c4 {[%emt 0:00:53]} g6 {[%emt 0:00:02]} 3. Nc3 {[%emt 0:00:06]} Bg7 {[%emt 0:00:07]} 4. e4 {[%emt 0:00:05]} O-O {[%emt 0:00:06]} 5. Nf3 {[%emt 0:00:06]} d6 {[%emt 0:00:06]} 6. Be2 {[%emt 0:01:08]} Nbd7 {[%emt 0:00:01]} 7. O-O {[%emt 0:04:48]} e5 {[%emt 0:00:13]} 8. Re1 {[%emt 0:00:35]} Re8 {[%emt 0:00:10]} 9. Bf1 {[%emt 0:00:27]} h6 {[%emt 0:00:01] E95: King's Indian: Classical: 7...Nbd7 8 Re1.} 10. d5 {[%emt 0:05:06]} a5 {[%emt 0:00:04]} 11. g3 {[%emt 0:00:38]} Nc5 {[%emt 0:04:30] The position is equal.} 12. Nh4 {[%emt 0:01:12]} c6 {[%emt 0:15:10] [#]} 13. f3 $146 {[%emt 0:03:36]} ({Predecessor:} 13. Qc2 cxd5 14. cxd5 Bd7 15. Be3 Rc8 16. Bxc5 Rxc5 17. Qb3 Qc7 18. Ng2 Rb8 19. a4 {0-1 (26) Bobrov,I (2186)-Grishchenko,V (2103) Voronezh 2007}) 13... cxd5 {[%emt 0:15:51]} 14. cxd5 {[%emt 0:01:20]} Nh5 {[%emt 0:00:51][%cal Oh5f4]} 15. Ng2 {[%emt 0:01:10]} f5 {[%emt 0:04:18]} 16. Bb5 {[%emt 0:17:20]} Bd7 {[%emt 0:04:18]} 17. Bxd7 {[%emt 0:00:15]} Qxd7 {[%emt 0:00:37]} 18. Be3 {[%emt 0:02:02]} Rac8 {[%emt 0:01:28]} 19. Qe2 {[%emt 0:10:13]} Nf6 {[%emt 0:02:31][%cal Rf5e4]} 20. exf5 {[%emt 0:12:04]} gxf5 {[%emt 0:00:27]} 21. Rad1 {[%emt 0:00:41]} (21. Nh4 $14) 21... Na4 $1 $11 {[%emt 0:10:10]} 22. Nxa4 {[%emt 0:01:16]} (22. Nb5 {is interesting.} e4 23. Rf1 exf3 24. Rxf3 Ng4 25. Nd4) 22... Qxa4 {[%emt 0:00:03]} 23. b3 {[%emt 0:00:20]} (23. Nh4 {seems wilder.} f4 24. Bc1 Rc2 25. Qf1) 23... Qd7 {[%emt 0:03:38]} 24. Qd2 {[%emt 0:00:24]} f4 {[%emt 0:02:01]} 25. gxf4 {[%emt 0:02:55]} e4 {[%emt 0:02:20]} 26. Qf2 {[%emt 0:04:53]} Qh3 {[%emt 0:03:20]} 27. fxe4 {[%emt 0:12:56]} Nxe4 {[%emt 0:06:26]} 28. Qh4 {[%emt 0:01:12]} Qf5 {[%emt 0:10:46] ...Bf6 is the strong threat.} 29. Bd4 {[%emt 0:02:50]} Rc7 {[%emt 0:02:16]} 30. Ne3 {[%emt 0:08:49]} Bxd4 {[%emt 0:02:01]} 31. Rxd4 {[%emt 0:00:04]} Rg7+ {[%emt 0:00:04]} 32. Kf1 $1 {[%emt 0:00:02]} (32. Kh1 Qh3 $3 {[%mdl 512]} 33. Rg1 Rxg1+ 34. Kxg1 Qxh4 35. Kh1 Nf2+ 36. Kg2 Rxe3 37. f5 Qh3+ 38. Kg1 Re1+ 39. Kxf2 Qe3+ 40. Kg2 Rg1#) 32... Qc8 {[%emt 0:05:58] Hoping for ...Qc3.} 33. Qh5 {[%emt 0:04:14]} (33. Qxh6 $2 Qc3 34. Rdd1 Nf6 $19) 33... Nf6 {[%emt 0:01:43] [#]} (33... Ree7 $1 $11) 34. Qf5 $1 $36 {[%emt 0:01:12][%mdl 2048] Strongly threatening Qxc8. Keeping Black busy.} Qc3 {[%emt 0:00:58]} 35. Rd3 $2 {[%emt 0:00:21]} (35. Qxf6 $18 {[%cal Oa2a4] Threatens to win with a4!} Ree7 36. Kf2 Qb2+ 37. Re2 Rg2+ 38. Nxg2 Rxe2+ 39. Kf3 Rxg2 40. Qe6+ Kh7 41. Qd7+ Rg7 42. Qf5+ Kh8 43. Qf8+ Kh7 44. Qf5+ Kh8 45. Qf8+ Kh7 46. Qf5+) 35... Qb4 {[%emt 0:03:54]} 36. a3 {[%emt 0:01:05]} (36. Qxf6 $6 Qe4 37. Rd2 (37. Ke2 Rg2+ 38. Kd1 Qxd3+ 39. Kc1 Qd2+ 40. Kb1 Qxe1+) 37... Qh1+ 38. Ke2 Rxe3+ 39. Kxe3 Qxe1+ 40. Re2 Qc1+ 41. Rd2 (41. Ke4 Qh1+ 42. Ke3 Qc1+ 43. Rd2 Rg2 $11) 41... Rg2 42. Qd8+ Kh7 43. Qe7+ Kh8 44. Qd8+ Kh7 45. Qe7+ Kh8 46. Qd8+ Kh7 $11) ({White should play} 36. Rc1 $16 {And now Rc4 would win.} Qe4 37. Qxe4 Nxe4 38. Nf5) 36... Qb5 {[%emt 0:01:14]} (36... Rg1+ $11 37. Kxg1 Qxe1+ 38. Nf1 Ne4) 37. Nc4 {[%emt 0:00:51] Really sharp!} Rf8 {[%emt 0:00:40] A mistake that costs the game.} (37... Rxe1+ $16 38. Kxe1 Qc5 39. Qe6+ (39. Qxf6 Qg1+ 40. Ke2 Qxh2+ 41. Kf3 Qg2+ 42. Ke3 Qg1+ 43. Kf3 Rg3+ 44. Ke4 Qh1+ 45. Kf5 Qh3+ 46. Ke4 Rxd3 $11) 39... Kh7) 38. Qe6+ $18 {[%emt 0:00:19]} Kh8 {[%emt 0:00:08]} (38... Rff7 $142 39. Ree3 (39. Qxd6 a4 $16) 39... Qc5) 39. Qxd6 {[%emt 0:00:49]} Nh7 {[%emt 0:00:40]} 40. a4 {[%emt 0:00:57]} Qb4 {[%emt 0:00:00][%cal Og7g1] aiming for ...Rg1+!} 41. Re4 {[%emt 0:08:04]} Nf6 {[%emt 0:05:02]} 42. Qxb4 {[%emt 0:01:38] White is clearly winning.} axb4 {[%emt 0:00:01]} 43. Red4 {[%emt 0:00:28]} Nd7 {[%emt 0:00:01]} 44. Kf2 {[%emt 0:03:36]} Rg4 {[%emt 0:03:06]} 45. Rf3 {[%emt 0:00:12]} Kh7 {[%emt 0:02:06]} 46. h3 {[%emt 0:01:40]} Rg7 {[%emt 0:00:20]} 47. Ne5 {[%emt 0:00:22]} Nf6 {[%emt 0:00:06]} 48. d6 {[%emt 0:02:42][%cal Bd5d6,Bd6d7][%mdl 32]} Rfg8 {[%emt 0:00:17]} 49. d7 {[%emt 0:00:27]} Rg2+ {[%emt 0:00:21]} 50. Ke3 {[%emt 0:00:04]} Rd8 {[%emt 0:00:07]} 51. Rd6 {[%emt 0:00:15] Weighted Error Value: White=0.12 (very precise) /Black=0.33} 1-0

[Event "USA Junior-ch 2022"]
[Site "Saint Louis"]
[Date "2022.07.07"]
[Round "1.4"]
[White "Yoo, Christopher Woojin"]
[Black "Jacobson, Brandon"]
[Result "1-0"]
[ECO "C65"]
[WhiteElo "2550"]
[BlackElo "2544"]
[Annotator "TA"]
[PlyCount "75"]
[EventDate "2022.07.07"]
[EventType "tourn"]
[EventCountry "USA"]
[SourceTitle "playchess.com"]
[Source "ChessBase"]
[SourceQuality "1"]
[TimeControl "40/5400+30:1800+30"]

{[%evp 17,75,0,0,0,7,7,14,11,25,25,23,18,35,42,63,45,45,47,41,34,168,163,150,158,140,141,172,175,187,87,83,89,87,88,98,98,98,98,168,159,168,162,161,157,203,207,213,217,324,327,316,318,309,321,483,473,561,539,622,612]} 1. e4 {[%emt 0:00:07]} e5 {[%emt 0:00:09]} 2. Nf3 {[%emt 0:00:09]} Nc6 {[%emt 0:00:06]} 3. Bb5 {[%emt 0:00:09]} Nf6 {[%emt 0:00:09]} 4. O-O {[%emt 0:00:05]} Bc5 {[%emt 0:00:23]} 5. c3 {[%emt 0:06:25]} O-O {[%emt 0:00:08]} 6. d4 {[%emt 0:02:21]} Bb6 {[%emt 0:00:08]} 7. Bg5 {[%emt 0:04:46]} d6 {[%emt 0:00:19]} 8. Bxc6 {[%emt 0:05:47]} bxc6 {[%emt 0:00:08]} 9. dxe5 {[%emt 0:03:08]} dxe5 {[%emt 0:00:06]} 10. Qa4 {[%emt 0:02:25] C65: Ruy Lopez: Berlin Defence (3...Nf6), unusual lines and 4 0-0 Bc5.} Qd6 {[%emt 0:06:16]} 11. Nbd2 {[%emt 0:03:52]} Nd7 {[%emt 0:00:39]} 12. Nc4 {[%emt 0:04:00] The position is equal.} Qe6 {[%emt 0:04:23] And now ...Nc5 would win.} 13. Be3 {[%emt 0:03:45] [#]} a5 $146 {[%emt 0:14:00] Threatens to win with ...Ba6.} ({Predecessor:} 13... f6 14. Rfd1 a5 15. Nxb6 Nxb6 16. Qb3 Re8 17. Bxb6 Qxb3 18. axb3 cxb6 19. Rd6 Re6 20. Rd8+ Kf7 21. Rad1 Re7 22. h3 Bb7 23. Rxa8 Bxa8 24. Rd8 Re8 {½-½ (24) Pech,J (1859)-Silva (1890) LSS email 2008}) 14. Nxb6 {[%emt 0:03:46]} cxb6 {[%emt 0:20:37]} 15. Rfd1 {[%emt 0:02:14]} c5 {[%emt 0:13:22]} 16. Rd5 {[%emt 0:04:23] White is more active.} Qe8 {[%emt 0:06:54]} 17. Qc6 {[%emt 0:08:26]} Rb8 {[%emt 0:01:15]} 18. Qd6 {[%emt 0:06:43]} Qe6 {[%emt 0:05:24] [#]} (18... f6 $14) 19. Qxe6 $1 $18 {[%emt 0:01:49]} fxe6 {[%emt 0:00:02]} 20. Rd3 {[%emt 0:01:26]} c4 {[%emt 0:16:47]} 21. Rd6 {[%emt 0:01:54]} b5 {[%emt 0:00:05]} 22. Rxe6 {[%emt 0:02:40]} Nf6 {[%emt 0:00:29]} 23. Rb6 {[%emt 0:07:20]} (23. Rxe5 $18 {aiming for Nd4.} Ng4 24. Re7) 23... Rxb6 $16 {[%emt 0:02:45]} 24. Bxb6 {[%emt 0:00:11]} a4 {[%emt 0:00:42]} 25. Nd2 {[%emt 0:04:10]} Bb7 {[%emt 0:01:44]} 26. f3 {[%emt 0:00:24]} Kf7 {[%emt 0:02:22]} 27. Nf1 {[%emt 0:01:06]} Nd7 {[%emt 0:00:34] [#]} (27... Ke6 $16) 28. Ba5 $1 $18 {[%emt 0:01:01]} Ra8 {[%emt 0:02:50]} 29. Bb4 {[%emt 0:00:34]} Nf6 {[%emt 0:00:43]} 30. Rd1 {[%emt 0:00:28] Against Rd8} Re8 {[%emt 0:00:20]} (30... Bc6 $16 31. Ne3 Ne8) 31. Ne3 {[%emt 0:01:48]} g6 {[%emt 0:00:03]} 32. g4 {[%emt 0:03:18][%cal Bg2g4,Bg4g5][%mdl 32] Hoping for g5.} Bc8 {[%emt 0:00:52]} (32... h6 $142 33. Rd6 Re6) 33. g5 {[%emt 0:01:10]} Nh5 {[%emt 0:00:05]} 34. Rd5 {[%emt 0:00:03]} Nf4 {[%emt 0:00:21]} 35. Rxb5 {[%emt 0:00:16]} Rd8 {[%emt 0:01:09]} (35... Be6 {might work better.} 36. Rb7+ (36. Rxe5 Rd8 $16) 36... Kg8) 36. Nxc4 {[%emt 0:02:12] White is clearly winning.} Ba6 {[%emt 0:01:12]} 37. Nxe5+ {[%emt 0:00:16]} Kg8 {[%emt 0:00:06]} 38. Rb6 {[%emt 0:01:35] Weighted Error Value: White=0.04 (flawless) /Black=0.32} 1-0

[Event "USA Junior-ch 2022"]
[Site "Saint Louis"]
[Date "2022.07.07"]
[Round "1.5"]
[White "Mishra, Abhimanyu"]
[Black "Yip, Carissa"]
[Result "1/2-1/2"]
[ECO "B66"]
[WhiteElo "2553"]
[BlackElo "2416"]
[Annotator "TA"]
[PlyCount "62"]
[EventDate "2022.07.07"]
[EventType "tourn"]
[EventCountry "USA"]
[SourceTitle "playchess.com"]
[Source "ChessBase"]
[SourceQuality "1"]
[TimeControl "40/5400+30:1800+30"]

{[%evp 13,62,7,44,16,18,14,32,34,29,27,50,22,20,15,22,0,0,-2,0,-14,-4,-23,0,0,0,0,0,0,0,0,0,0,0,0,0,0,0,0,0,0,0,0,0,0,0,0,0,0,0,0,-1]} 1. e4 {[%emt 0:00:02]} c5 {[%emt 0:00:05]} 2. Nf3 {[%emt 0:00:05]} d6 {[%emt 0:00:04]} 3. d4 {[%emt 0:00:14]} cxd4 {[%emt 0:00:08]} 4. Nxd4 {[%emt 0:00:12]} Nf6 {[%emt 0:00:07]} 5. Nc3 {[%emt 0:00:11]} Nc6 {[%emt 0:00:25]} 6. Bg5 {[%emt 0:00:53]} e6 {[%emt 0:00:08]} 7. Qd2 {[%emt 0:01:36]} a6 {[%emt 0:00:41]} 8. Nxc6 {[%emt 0:01:05] B66: Sicilian: Richter-Rauzer: 7...a6 8 0-0-0 h6.} bxc6 {[%emt 0:00:06]} 9. O-O-O {[%emt 0:00:22][%cal Oe4e5] Hoping for e5!} Be7 {[%emt 0:06:37]} 10. Bxf6 {[%emt 0:02:36] White is slightly better.} gxf6 {[%emt 0:03:14]} 11. Bc4 {[%emt 0:00:48]} Qa5 {[%emt 0:11:57]} 12. Rhe1 {[%emt 0:10:38]} Bb7 $1 {[%emt 0:11:00]} 13. Bb3 {[%emt 0:08:44]} O-O-O {[%emt 0:01:39] [#]} 14. a3 $146 {[%emt 0:11:23]} ({Predecessor:} 14. Qe2 h5 15. f4 f5 16. Kb1 h4 17. exf5 Qxf5 18. Bc4 a5 19. Bd3 Qc5 20. f5 {1-0 (58) Kulkarni,C (2281)-Deepak,K (2123) Montcada 2018}) 14... f5 {[%emt 0:16:14]} 15. f4 {[%emt 0:03:28]} fxe4 {[%emt 0:06:24]} 16. Nxe4 {[%emt 0:03:49][%cal Bc3e4,Be4d2,Bd2f3][%mdl 32]} Qxd2+ {[%emt 0:03:43]} 17. Nxd2 {[%emt 0:01:23]} d5 {[%emt 0:04:39]} 18. f5 {[%emt 0:09:11] The position is equal.} Bd6 {[%emt 0:02:23]} 19. fxe6 {[%emt 0:07:28]} fxe6 {[%emt 0:00:03]} 20. Rxe6 {[%emt 0:01:17]} Bxh2 {[%emt 0:00:30]} 21. Nf3 {[%emt 0:04:15]} Bf4+ {[%emt 0:00:08]} 22. Kb1 {[%emt 0:00:10]} Rde8 {[%emt 0:02:16]} 23. Rf6 {[%emt 0:07:14]} Rhf8 {[%emt 0:02:58]} 24. Rxf8 {[%emt 0:00:10]} Rxf8 {[%emt 0:00:03]} 25. c4 {[%emt 0:00:16][%cal Rc4d5]} Rg8 {[%emt 0:06:49]} 26. cxd5 {[%emt 0:02:54]} cxd5 {[%emt 0:00:03]} 27. Bxd5 {[%emt 0:04:57]} Bxd5 {[%emt 0:00:04]} 28. Rxd5 {[%emt 0:00:07]} Rxg2 $11 {[%emt 0:00:04] KRB-KRN} 29. Rf5 {[%emt 0:04:55]} Bh6 {[%emt 0:02:27]} 30. Rh5 {[%emt 0:03:01]} Bg7 {[%emt 0:00:09]} 31. Rxh7 {[%emt 0:01:34]} Rxb2+ {[%emt 0:01:15] Weighted Error Value: White=0.05 (flawless) /Black=0.05 (flawless)} 1/2-1/2